[Event "*** Titled Tuesday Blitz"]
[Site "Chess.com"]
[Date "2021.03.09"]
[Round "10"]
[White "manikoloz"]
[Black "Fiona"]
[Result "1-0"]
[WhiteElo "2403"]
[BlackElo "2200"]
[TimeControl "180+1"]
[EndTime "11:59:09 PST"]
[Termination "manikoloz won by resignation"]

1. Nf3 {[%clk 0:03:00.9]} 1... d6 {[%clk 0:02:59.8]} 2. d4 {[%clk 0:02:57]} 2...
Bg4 {[%clk 0:02:59.8]} 3. Nbd2 {[%clk 0:02:55.2]} 3... Nd7 {[%clk 0:03:00]} 4.
h3 {[%clk 0:02:54.7]} 4... Bh5 {[%clk 0:02:58]} 5. c4 {[%clk 0:02:54.3]} 5... e5
{[%clk 0:02:57.3]} 6. e3 {[%clk 0:02:51.8]} 6... Ngf6 {[%clk 0:02:53.2]} 7. Be2
{[%clk 0:02:51.9]} 7... Bg6 {[%clk 0:02:52]} 8. Qb3 {[%clk 0:02:46.3]} 8... Rb8
{[%clk 0:02:46.5]} 9. Qa4 {[%clk 0:02:44.2]} 9... c6 {[%clk 0:02:31.1]} 10. Qxa7
{[%clk 0:02:35.4]} 10... Be7 {[%clk 0:02:19.2]} 11. Qa4 {[%clk 0:02:29.5]} 11...
O-O {[%clk 0:02:18.6]} 12. Qd1 {[%clk 0:02:28.4]} 12... e4 {[%clk 0:02:09.9]}
13. Nh4 {[%clk 0:02:27.9]} 13... d5 {[%clk 0:02:07.2]} 14. Nxg6 {[%clk
0:02:27.7]} 14... fxg6 {[%clk 0:02:08.1]} 15. O-O {[%clk 0:02:27.2]} 15... Bd6
{[%clk 0:02:05.2]} 16. a3 {[%clk 0:02:21.5]} 16... Bc7 {[%clk 0:02:03.4]} 17. f4
{[%clk 0:01:47.7]} 17... exf3 {[%clk 0:01:59.3]} 18. Bxf3 {[%clk 0:01:48.1]}
18... Qe7 {[%clk 0:01:47.2]} 19. Re1 {[%clk 0:01:43.3]} 19... Qd6 {[%clk
0:01:40.5]} 20. Nf1 {[%clk 0:01:40.6]} 20... Ne4 {[%clk 0:01:40.9]} 21. cxd5
{[%clk 0:01:27.7]} 21... cxd5 {[%clk 0:01:39.9]} 22. Bxe4 {[%clk 0:01:27.9]}
22... dxe4 {[%clk 0:01:32.2]} 23. Qb3+ {[%clk 0:01:01.6]} 23... Kh8 {[%clk
0:01:31.6]} 24. Bd2 {[%clk 0:00:47.9]} 24... Rxf1+ {[%clk 0:00:54.5]} 25. Kxf1
{[%clk 0:00:45.3]} 25... Qg3 {[%clk 0:00:49.3]} 26. Bb4 {[%clk 0:00:41.9]} 26...
Nf6 {[%clk 0:00:20.6]} 27. Rac1 {[%clk 0:00:33.5]} 27... Nh5 {[%clk 0:00:19.7]}
28. Qf7 {[%clk 0:00:30.7]} 28... Bd6 {[%clk 0:00:10.8]} 29. Bxd6 {[%clk
0:00:24.7]} 29... Qxd6 {[%clk 0:00:11.7]} 30. Kg1 {[%clk 0:00:21.2]} 30... Rf8
{[%clk 0:00:10.2]} 31. Rf1 {[%clk 0:00:20.5]} 31... Rxf7 {[%clk 0:00:10]} 32.
Rc8+ {[%clk 0:00:20.2]} 1-0

[Event "*** Titled Tuesday Blitz"]
[Site "Chess.com"]
[Date "2021.03.09"]
[Round "10"]
[White "lindsay790"]
[Black "floplover"]
[Result "0-1"]
[WhiteElo "2199"]
[BlackElo "2307"]
[TimeControl "180+1"]
[EndTime "11:59:10 PST"]
[Termination "floplover won by checkmate"]

1. e4 {[%clk 0:02:58.9]} 1... c6 {[%clk 0:03:00.2]} 2. d4 {[%clk 0:02:58.5]}
2... d5 {[%clk 0:03:01.1]} 3. e5 {[%clk 0:02:58]} 3... Bf5 {[%clk 0:03:00.2]} 4.
g4 {[%clk 0:02:52.9]} 4... Be4 {[%clk 0:02:57.3]} 5. f3 {[%clk 0:02:51.9]} 5...
Bg6 {[%clk 0:02:57.2]} 6. h4 {[%clk 0:02:52.2]} 6... h5 {[%clk 0:02:56.1]} 7. g5
{[%clk 0:02:46.1]} 7... e6 {[%clk 0:02:54]} 8. Bd3 {[%clk 0:02:44.2]} 8... Ne7
{[%clk 0:02:50.5]} 9. Bxg6 {[%clk 0:02:41.7]} 9... Nxg6 {[%clk 0:02:49.4]} 10.
Ne2 {[%clk 0:02:41.1]} 10... c5 {[%clk 0:02:45.3]} 11. f4 {[%clk 0:02:33.2]}
11... Nc6 {[%clk 0:02:41.2]} 12. c3 {[%clk 0:02:31]} 12... Qb6 {[%clk 0:02:38]}
13. Na3 {[%clk 0:02:19.3]} 13... Be7 {[%clk 0:02:27.2]} 14. Nc2 {[%clk
0:02:16.2]} 14... f6 {[%clk 0:02:19.2]} 15. Be3 {[%clk 0:02:00.9]} 15... cxd4
{[%clk 0:01:57.5]} 16. Ncxd4 {[%clk 0:01:47.7]} 16... Nxd4 {[%clk 0:01:49.7]}
17. cxd4 {[%clk 0:01:39]} 17... fxe5 {[%clk 0:01:43.8]} 18. Qa4+ {[%clk
0:01:08.1]} 18... Kd8 {[%clk 0:01:29.5]} 19. Bd2 {[%clk 0:00:51.4]} 19... a5
{[%clk 0:01:25.8]} 20. fxe5 {[%clk 0:00:47.5]} 20... Rf8 {[%clk 0:01:01.5]} 21.
Rb1 {[%clk 0:00:42.2]} 21... Kc8 {[%clk 0:00:55.9]} 22. b4 {[%clk 0:00:29.9]}
22... Kb8 {[%clk 0:00:50.8]} 23. b5 {[%clk 0:00:28]} 23... Kc7 {[%clk
0:00:23.1]} 24. Rc1+ {[%clk 0:00:21.1]} 24... Kd7 {[%clk 0:00:23.2]} 25. Rc3
{[%clk 0:00:13.8]} 25... Rf7 {[%clk 0:00:18.7]} 26. Ng3 {[%clk 0:00:10.7]} 26...
Raf8 {[%clk 0:00:16.3]} 27. Nxh5 {[%clk 0:00:10.4]} 27... Bb4 {[%clk 0:00:12.4]}
28. Re3 {[%clk 0:00:08.8]} 28... Qxd4 {[%clk 0:00:12.4]} 29. b6+ {[%clk
0:00:07.7]} 29... Kd8 {[%clk 0:00:11.2]} 30. Qb5 {[%clk 0:00:07.2]} 30... Qxd2#
{[%clk 0:00:10.8]} 0-1

[Event "*** Titled Tuesday Blitz"]
[Site "Chess.com"]
[Date "2021.03.09"]
[Round "10"]
[White "grandcoach"]
[Black "TeukkaSalama"]
[Result "1-0"]
[WhiteElo "2260"]
[BlackElo "2343"]
[TimeControl "180+1"]
[EndTime "11:59:12 PST"]
[Termination "grandcoach won by checkmate"]

1. e4 {[%clk 0:03:00.9]} 1... e6 {[%clk 0:02:58.9]} 2. Nf3 {[%clk 0:03:00.1]}
2... d5 {[%clk 0:02:59]} 3. e5 {[%clk 0:03:00.7]} 3... c5 {[%clk 0:02:59.1]} 4.
b4 {[%clk 0:03:01.1]} 4... d4 {[%clk 0:02:59.6]} 5. Na3 {[%clk 0:02:49.6]} 5...
cxb4 {[%clk 0:02:56.3]} 6. Bb5+ {[%clk 0:02:47.4]} 6... Nc6 {[%clk 0:02:52.1]}
7. Nc4 {[%clk 0:02:46.1]} 7... Qd5 {[%clk 0:02:40]} 8. Bxc6+ {[%clk 0:02:41.3]}
8... bxc6 {[%clk 0:02:37.4]} 9. d3 {[%clk 0:02:36.3]} 9... Ba6 {[%clk
0:02:30.2]} 10. Qe2 {[%clk 0:02:17.3]} 10... Nh6 {[%clk 0:01:58.5]} 11. Bxh6
{[%clk 0:02:06.1]} 11... gxh6 {[%clk 0:01:58.4]} 12. Nfd2 {[%clk 0:02:00.2]}
12... Qxg2 {[%clk 0:01:39.3]} 13. O-O-O {[%clk 0:01:58.5]} 13... Bxc4 {[%clk
0:01:37.4]} 14. Nxc4 {[%clk 0:01:51.2]} 14... Qd5 {[%clk 0:01:29.5]} 15. Rhg1
{[%clk 0:01:42.2]} 15... O-O-O {[%clk 0:01:20.7]} 16. Rg4 {[%clk 0:01:31.1]}
16... h5 {[%clk 0:01:14.3]} 17. Re4 {[%clk 0:01:28.1]} 17... a5 {[%clk
0:00:43.4]} 18. Qxh5 {[%clk 0:01:27.7]} 18... Kb7 {[%clk 0:00:39.3]} 19. Qxf7+
{[%clk 0:01:26.4]} 19... Rd7 {[%clk 0:00:39.5]} 20. Qf6 {[%clk 0:01:25.2]} 20...
Bg7 {[%clk 0:00:33]} 21. Qh4 {[%clk 0:01:11.7]} 21... a4 {[%clk 0:00:28.9]} 22.
Rg1 {[%clk 0:01:09.8]} 22... b3 {[%clk 0:00:25.1]} 23. cxb3 {[%clk 0:01:07.7]}
23... axb3 {[%clk 0:00:25.3]} 24. axb3 {[%clk 0:01:07.9]} 24... Ra8 {[%clk
0:00:23.3]} 25. Kb2 {[%clk 0:01:04.8]} 25... Qc5 {[%clk 0:00:19.1]} 26. Ra1
{[%clk 0:00:52.5]} 26... Rxa1 {[%clk 0:00:13]} 27. Kxa1 {[%clk 0:00:53.4]} 27...
Rd8 {[%clk 0:00:12.7]} 28. Rg4 {[%clk 0:00:47.9]} 28... Ra8+ {[%clk 0:00:12.2]}
29. Kb2 {[%clk 0:00:47.3]} 29... Bf8 {[%clk 0:00:10.6]} 30. Qxh7+ {[%clk
0:00:45.5]} 30... Ka6 {[%clk 0:00:10]} 31. Rg1 {[%clk 0:00:41.9]} 31... Ra7
{[%clk 0:00:02]} 32. Ra1+ {[%clk 0:00:41]} 32... Kb5 {[%clk 0:00:02.6]} 33. Qxa7
{[%clk 0:00:39.5]} 33... Qxa7 {[%clk 0:00:02.3]} 34. Rxa7 {[%clk 0:00:39.4]}
34... Bb4 {[%clk 0:00:03.2]} 35. Rb7+ {[%clk 0:00:38.5]} 35... Kc5 {[%clk
0:00:02.7]} 36. Rxb4 {[%clk 0:00:38.2]} 36... Kxb4 {[%clk 0:00:03.6]} 37. h4
{[%clk 0:00:38.2]} 37... Kc5 {[%clk 0:00:04]} 38. h5 {[%clk 0:00:38.3]} 38...
Kd5 {[%clk 0:00:04.9]} 39. h6 {[%clk 0:00:38.5]} 39... c5 {[%clk 0:00:05.6]} 40.
h7 {[%clk 0:00:37.9]} 40... Kc6 {[%clk 0:00:06.5]} 41. h8=Q {[%clk 0:00:37.4]}
41... Kd5 {[%clk 0:00:07.4]} 42. Qd8+ {[%clk 0:00:37.2]} 42... Kc6 {[%clk
0:00:08.3]} 43. Qd6+ {[%clk 0:00:36.7]} 43... Kb5 {[%clk 0:00:08.9]} 44. Qb6#
{[%clk 0:00:36.1]} 1-0

[Event "*** Titled Tuesday Blitz"]
[Site "Chess.com"]
[Date "2021.03.09"]
[Round "10"]
[White "LuisFSiles"]
[Black "FMOlexandrProhorov"]
[Result "0-1"]
[WhiteElo "2273"]
[BlackElo "2133"]
[TimeControl "180+1"]
[EndTime "11:59:13 PST"]
[Termination "FMOlexandrProhorov won by resignation"]

1. d4 {[%clk 0:02:53.5]} 1... c5 {[%clk 0:03:00.9]} 2. d5 {[%clk 0:02:52.8]}
2... g6 {[%clk 0:03:00.8]} 3. Nc3 {[%clk 0:02:52.4]} 3... Bg7 {[%clk 0:03:01.1]}
4. e4 {[%clk 0:02:52.8]} 4... d6 {[%clk 0:03:01.1]} 5. f4 {[%clk 0:02:52.8]}
5... Nf6 {[%clk 0:02:58.4]} 6. Bb5+ {[%clk 0:02:51.3]} 6... Bd7 {[%clk
0:02:57.4]} 7. a4 {[%clk 0:02:50]} 7... O-O {[%clk 0:02:50.4]} 8. Nf3 {[%clk
0:02:46.1]} 8... Bg4 {[%clk 0:02:40.6]} 9. O-O {[%clk 0:02:45.9]} 9... Na6
{[%clk 0:02:40.4]} 10. h3 {[%clk 0:02:24.1]} 10... Bxf3 {[%clk 0:02:39.9]} 11.
Qxf3 {[%clk 0:02:25]} 11... Nc7 {[%clk 0:02:28.6]} 12. Bd2 {[%clk 0:02:11.4]}
12... e6 {[%clk 0:02:28.3]} 13. dxe6 {[%clk 0:02:05.3]} 13... fxe6 {[%clk
0:02:21.1]} 14. Rad1 {[%clk 0:01:57.6]} 14... Qe7 {[%clk 0:02:20.5]} 15. Be1
{[%clk 0:01:50.9]} 15... Rab8 {[%clk 0:02:14.8]} 16. Bh4 {[%clk 0:01:48.2]}
16... a6 {[%clk 0:02:15]} 17. Bc4 {[%clk 0:01:45]} 17... b5 {[%clk 0:02:15.1]}
18. axb5 {[%clk 0:01:41.8]} 18... axb5 {[%clk 0:02:16]} 19. Be2 {[%clk
0:01:41.1]} 19... b4 {[%clk 0:02:11.8]} 20. Nb1 {[%clk 0:01:33.5]} 20... Qd7
{[%clk 0:01:57]} 21. e5 {[%clk 0:01:30.7]} 21... Nfd5 {[%clk 0:01:53.8]} 22.
exd6 {[%clk 0:01:25.1]} 22... Qxd6 {[%clk 0:01:54.1]} 23. Bg3 {[%clk 0:01:23.3]}
23... Qe7 {[%clk 0:01:46.5]} 24. Bc4 {[%clk 0:01:13.9]} 24... Bxb2 {[%clk
0:01:44.4]} 25. Kh2 {[%clk 0:01:11.9]} 25... Bg7 {[%clk 0:01:41.7]} 26. Rfe1
{[%clk 0:01:11.3]} 26... Qf6 {[%clk 0:01:35.8]} 27. Nd2 {[%clk 0:01:10]} 27...
Nxf4 {[%clk 0:01:19.9]} 28. Ne4 {[%clk 0:01:09.7]} 28... Qf5 {[%clk 0:01:18.9]}
29. Nd6 {[%clk 0:01:06.5]} 29... Qg5 {[%clk 0:01:11.8]} 30. Qc6 {[%clk
0:00:54.5]} 30... Ncd5 {[%clk 0:01:07.2]} 31. Ne4 {[%clk 0:00:54.6]} 31... Qh5
{[%clk 0:01:01.2]} 32. Qxc5 {[%clk 0:00:52.8]} 32... Rbc8 {[%clk 0:00:58.9]} 33.
Qb5 {[%clk 0:00:49.5]} 33... Kh8 {[%clk 0:00:59.1]} 34. Rf1 {[%clk 0:00:38.4]}
34... g5 {[%clk 0:00:57.5]} 35. Qd7 {[%clk 0:00:29.3]} 35... Ne3 {[%clk
0:00:56]} 36. Bxe6 {[%clk 0:00:21.7]} 36... Nexg2 {[%clk 0:00:48.4]} 37. Bg4
{[%clk 0:00:18.4]} 37... Qg6 {[%clk 0:00:45.9]} 38. Qxc8 {[%clk 0:00:17.8]}
38... Rxc8 {[%clk 0:00:44.7]} 39. Bxc8 {[%clk 0:00:18.7]} 39... Ne3 {[%clk
0:00:44.3]} 40. Rd8+ {[%clk 0:00:18.5]} 40... Bf8 {[%clk 0:00:44.5]} 41. Rxf8+
{[%clk 0:00:18.8]} 41... Kg7 {[%clk 0:00:45.1]} 42. Bxf4 {[%clk 0:00:18.4]}
42... Nxf1+ {[%clk 0:00:42.3]} 43. Kg1 {[%clk 0:00:13.2]} 43... gxf4+ {[%clk
0:00:40.8]} 44. Kxf1 {[%clk 0:00:13.5]} 44... Kxf8 {[%clk 0:00:41.2]} 45. Bg4
{[%clk 0:00:12.8]} 45... Qxe4 {[%clk 0:00:41.1]} 0-1

[Event "*** Titled Tuesday Blitz"]
[Site "Chess.com"]
[Date "2021.03.09"]
[Round "10"]
[White "annacramling"]
[Black "IECS12"]
[Result "0-1"]
[WhiteElo "2040"]
[BlackElo "2223"]
[TimeControl "180+1"]
[EndTime "11:59:14 PST"]
[Termination "IECS12 won by resignation"]

1. d4 {[%clk 0:03:00.9]} 1... Nf6 {[%clk 0:02:59.4]} 2. c4 {[%clk 0:02:59.8]}
2... e6 {[%clk 0:02:59.9]} 3. Nc3 {[%clk 0:02:59.3]} 3... Bb4 {[%clk 0:02:56.6]}
4. Qc2 {[%clk 0:02:59.5]} 4... d5 {[%clk 0:02:52.8]} 5. cxd5 {[%clk 0:02:57.1]}
5... exd5 {[%clk 0:02:52.6]} 6. Bg5 {[%clk 0:02:57.8]} 6... O-O {[%clk
0:02:50.7]} 7. e3 {[%clk 0:02:55.8]} 7... h6 {[%clk 0:02:42.6]} 8. Bh4 {[%clk
0:02:55.8]} 8... c6 {[%clk 0:02:36]} 9. Nf3 {[%clk 0:02:55.8]} 9... Bg4 {[%clk
0:02:35.5]} 10. Ne5 {[%clk 0:02:45.3]} 10... Be6 {[%clk 0:02:28.8]} 11. Bd3
{[%clk 0:02:43.3]} 11... Nbd7 {[%clk 0:02:24.4]} 12. O-O {[%clk 0:02:37]} 12...
Be7 {[%clk 0:02:22.6]} 13. f4 {[%clk 0:02:33.2]} 13... a5 {[%clk 0:02:14.2]} 14.
f5 {[%clk 0:02:28.8]} 14... Nxe5 {[%clk 0:02:05.1]} 15. dxe5 {[%clk 0:02:29.7]}
15... Bd7 {[%clk 0:02:01.7]} 16. exf6 {[%clk 0:02:28.1]} 16... gxf6 {[%clk
0:02:02.6]} 17. Qf2 {[%clk 0:02:22.2]} 17... Bd6 {[%clk 0:02:00.5]} 18. e4
{[%clk 0:02:18.5]} 18... b6 {[%clk 0:01:53.2]} 19. Kh1 {[%clk 0:02:18.1]} 19...
d4 {[%clk 0:01:44.7]} 20. Ne2 {[%clk 0:02:15.4]} 20... c5 {[%clk 0:01:44.7]} 21.
Nf4 {[%clk 0:02:13.4]} 21... b5 {[%clk 0:01:40.7]} 22. Nh5 {[%clk 0:01:58.1]}
22... Be5 {[%clk 0:01:39.1]} 23. Qe2 {[%clk 0:01:22.4]} 23... Kh7 {[%clk
0:01:31.2]} 24. Rf3 {[%clk 0:01:10.4]} 24... c4 {[%clk 0:01:30.5]} 25. Bb1
{[%clk 0:01:00.6]} 25... d3 {[%clk 0:01:29.6]} 26. Qd2 {[%clk 0:00:59.9]} 26...
Re8 {[%clk 0:01:21.8]} 27. Rh3 {[%clk 0:00:58.2]} 27... Bc6 {[%clk 0:01:15.2]}
28. Ng3 {[%clk 0:00:29.6]} 28... Rg8 {[%clk 0:01:10.9]} 29. Qd1 {[%clk
0:00:12.1]} 29... Qd4 {[%clk 0:00:21.8]} 30. Qh5 {[%clk 0:00:05.4]} 30... Qe3
{[%clk 0:00:18.8]} 31. Qxh6+ {[%clk 0:00:03.4]} 31... Qxh6 {[%clk 0:00:18.2]}
32. Bxf6 {[%clk 0:00:01.5]} 32... Qxh3 {[%clk 0:00:16.8]} 33. gxh3 {[%clk
0:00:01.5]} 33... Bxf6 {[%clk 0:00:16.8]} 0-1

[Event "*** Titled Tuesday Blitz"]
[Site "Chess.com"]
[Date "2021.03.09"]
[Round "10"]
[White "toog"]
[Black "Grimlock_Glasgow"]
[Result "1-0"]
[WhiteElo "2405"]
[BlackElo "2494"]
[TimeControl "180+1"]
[EndTime "11:59:15 PST"]
[Termination "toog won by resignation"]

1. e4 {[%clk 0:03:00.9]} 1... e5 {[%clk 0:02:59.7]} 2. Nf3 {[%clk 0:02:57.7]}
2... d5 {[%clk 0:02:59.9]} 3. exd5 {[%clk 0:02:56.3]} 3... Bd6 {[%clk
0:03:00.2]} 4. Nc3 {[%clk 0:02:54]} 4... Nf6 {[%clk 0:02:59.8]} 5. Bb5+ {[%clk
0:02:40.9]} 5... c6 {[%clk 0:02:59.7]} 6. dxc6 {[%clk 0:02:39.1]} 6... Nxc6
{[%clk 0:03:00.6]} 7. O-O {[%clk 0:02:37.3]} 7... O-O {[%clk 0:03:00.6]} 8. d3
{[%clk 0:02:37.1]} 8... Nd4 {[%clk 0:02:59.9]} 9. h3 {[%clk 0:02:26.6]} 9... a6
{[%clk 0:02:39.7]} 10. Bc4 {[%clk 0:02:26.3]} 10... b5 {[%clk 0:02:39.6]} 11.
Bb3 {[%clk 0:02:23.5]} 11... Bb7 {[%clk 0:02:29.6]} 12. Nxd4 {[%clk 0:02:23]}
12... exd4 {[%clk 0:02:28.8]} 13. Ne2 {[%clk 0:02:23.5]} 13... Qb6 {[%clk
0:02:09.7]} 14. Bg5 {[%clk 0:02:10.9]} 14... Qc6 {[%clk 0:02:05.4]} 15. f3
{[%clk 0:02:10.5]} 15... Nh5 {[%clk 0:01:56.8]} 16. Qd2 {[%clk 0:02:00.3]} 16...
Bc5 {[%clk 0:01:36.8]} 17. Nf4 {[%clk 0:01:37.6]} 17... Ng3 {[%clk 0:01:27.1]}
18. Rfe1 {[%clk 0:01:36.2]} 18... h6 {[%clk 0:01:16.7]} 19. Bh4 {[%clk
0:01:35.9]} 19... Nf5 {[%clk 0:01:15.9]} 20. Bf2 {[%clk 0:01:34.7]} 20... Ne3
{[%clk 0:01:14.8]} 21. c3 {[%clk 0:01:10.7]} 21... dxc3 {[%clk 0:00:33.7]} 22.
bxc3 {[%clk 0:01:11.6]} 22... Nf5 {[%clk 0:00:33.2]} 23. d4 {[%clk 0:01:08]}
23... Bd6 {[%clk 0:00:32.1]} 24. Nd5 {[%clk 0:01:05.6]} 24... Rae8 {[%clk
0:00:29.4]} 25. Rxe8 {[%clk 0:00:53.7]} 25... Rxe8 {[%clk 0:00:30.3]} 26. Re1
{[%clk 0:00:52.1]} 26... Rd8 {[%clk 0:00:30.5]} 27. Qd3 {[%clk 0:00:42.4]} 27...
Qd7 {[%clk 0:00:24.9]} 28. Ne3 {[%clk 0:00:34.2]} 28... Nxe3 {[%clk 0:00:22.8]}
29. Bxe3 {[%clk 0:00:34.5]} 29... Bc7 {[%clk 0:00:21.1]} 30. c4 {[%clk
0:00:20.2]} 30... Qd6 {[%clk 0:00:19.5]} 31. f4 {[%clk 0:00:20.3]} 31... bxc4
{[%clk 0:00:19.1]} 32. Bxc4 {[%clk 0:00:20.6]} 32... Qc6 {[%clk 0:00:16.9]} 33.
Re2 {[%clk 0:00:21.1]} 33... Re8 {[%clk 0:00:16.9]} 34. Qb3 {[%clk 0:00:20.7]}
34... Kh8 {[%clk 0:00:14.3]} 35. Bxf7 {[%clk 0:00:20.2]} 35... Rxe3 {[%clk
0:00:11.5]} 36. Qxe3 {[%clk 0:00:21.1]} 36... Qf6 {[%clk 0:00:08.9]} 37. Qe8+
{[%clk 0:00:20.5]} 1-0

[Event "*** Titled Tuesday Blitz"]
[Site "Chess.com"]
[Date "2021.03.09"]
[Round "10"]
[White "ChronicUnhappiness"]
[Black "MuhittinBuker"]
[Result "0-1"]
[WhiteElo "2327"]
[BlackElo "2186"]
[TimeControl "180+1"]
[EndTime "11:59:17 PST"]
[Termination "MuhittinBuker won on time"]

1. d4 {[%clk 0:03:00.9]} 1... d5 {[%clk 0:02:34.1]} 2. c4 {[%clk 0:02:56.9]}
2... e6 {[%clk 0:02:32.1]} 3. Nc3 {[%clk 0:02:56]} 3... Nf6 {[%clk 0:02:31.8]}
4. cxd5 {[%clk 0:02:56.1]} 4... exd5 {[%clk 0:02:31.3]} 5. Bg5 {[%clk
0:02:56.1]} 5... c6 {[%clk 0:02:31.6]} 6. e3 {[%clk 0:02:56.3]} 6... Be7 {[%clk
0:02:30.2]} 7. Bd3 {[%clk 0:02:50.4]} 7... Nbd7 {[%clk 0:02:29.5]} 8. Nf3 {[%clk
0:02:50.5]} 8... O-O {[%clk 0:02:29.2]} 9. O-O {[%clk 0:02:50.1]} 9... Re8
{[%clk 0:02:29.1]} 10. Qc2 {[%clk 0:02:49.3]} 10... Nf8 {[%clk 0:02:28.7]} 11.
h3 {[%clk 0:02:46.3]} 11... g6 {[%clk 0:02:28.8]} 12. Ne5 {[%clk 0:02:12.4]}
12... Ne6 {[%clk 0:02:27.3]} 13. Bxf6 {[%clk 0:02:11.9]} 13... Bxf6 {[%clk
0:02:26.2]} 14. f4 {[%clk 0:02:12.8]} 14... Bg7 {[%clk 0:02:19.7]} 15. f5 {[%clk
0:01:58.1]} 15... Ng5 {[%clk 0:02:12.8]} 16. fxg6 {[%clk 0:01:47.3]} 16... hxg6
{[%clk 0:02:09.1]} 17. Nxf7 {[%clk 0:00:47.6]} 17... Nxf7 {[%clk 0:02:08]} 18.
Bxg6 {[%clk 0:00:35.6]} 18... Re7 {[%clk 0:02:02.4]} 19. Bh7+ {[%clk 0:00:14.8]}
19... Kh8 {[%clk 0:01:58.2]} 20. Qg6 {[%clk 0:00:15.7]} 20... Nh6 {[%clk
0:01:52.7]} 21. Rf3 {[%clk 0:00:08.5]} 21... Bd7 {[%clk 0:01:50.2]} 22. Raf1
{[%clk 0:00:07.6]} 22... Qe8 {[%clk 0:01:38.5]} 23. Qd3 {[%clk 0:00:06.8]} 23...
Be6 {[%clk 0:00:43.4]} 24. Ne2 {[%clk 0:00:06.4]} 24... Bg8 {[%clk 0:00:36.5]}
25. Bg6 {[%clk 0:00:05]} 25... Bf7 {[%clk 0:00:32]} 26. Nf4 {[%clk 0:00:05.9]}
26... Kg8 {[%clk 0:00:20]} 27. Bh7+ {[%clk 0:00:03.6]} 27... Kh8 {[%clk
0:00:19.6]} 28. Ng6+ {[%clk 0:00:03]} 28... Bxg6 {[%clk 0:00:19.9]} 29. Bxg6
{[%clk 0:00:03.9]} 29... Qd7 {[%clk 0:00:17.7]} 30. Rg3 {[%clk 0:00:02.3]} 30...
Qe6 {[%clk 0:00:17.4]} 31. Qe2 {[%clk 0:00:02.4]} 31... Rf8 {[%clk 0:00:15.9]}
0-1

[Event "*** Titled Tuesday Blitz"]
[Site "Chess.com"]
[Date "2021.03.09"]
[Round "10"]
[White "Sagar_Raina"]
[Black "BanjoKazooieN64"]
[Result "0-1"]
[WhiteElo "2284"]
[BlackElo "2409"]
[TimeControl "180+1"]
[EndTime "11:59:18 PST"]
[Termination "BanjoKazooieN64 won on time"]

1. d4 {[%clk 0:03:00.9]} 1... Nf6 {[%clk 0:02:59.7]} 2. c4 {[%clk 0:02:59.8]}
2... g6 {[%clk 0:03:00.2]} 3. Nc3 {[%clk 0:02:50.5]} 3... Bg7 {[%clk 0:03:00.5]}
4. e4 {[%clk 0:02:50.3]} 4... d6 {[%clk 0:03:01.1]} 5. Be2 {[%clk 0:02:49.4]}
5... O-O {[%clk 0:03:01.6]} 6. Nf3 {[%clk 0:02:48.8]} 6... e5 {[%clk 0:03:01.5]}
7. d5 {[%clk 0:02:48.7]} 7... a5 {[%clk 0:03:00.7]} 8. Bg5 {[%clk 0:02:43.7]}
8... Na6 {[%clk 0:02:59.9]} 9. Nd2 {[%clk 0:02:43.1]} 9... Nc5 {[%clk
0:02:59.2]} 10. g4 {[%clk 0:02:32.2]} 10... c6 {[%clk 0:02:49.8]} 11. h4 {[%clk
0:02:28.7]} 11... cxd5 {[%clk 0:02:46.1]} 12. Nxd5 {[%clk 0:02:12.9]} 12... Be6
{[%clk 0:02:45.9]} 13. h5 {[%clk 0:02:07.9]} 13... Bxd5 {[%clk 0:02:38.7]} 14.
cxd5 {[%clk 0:01:59.5]} 14... h6 {[%clk 0:02:39]} 15. Bxf6 {[%clk 0:01:40.3]}
15... Qxf6 {[%clk 0:02:39]} 16. f3 {[%clk 0:01:16.5]} 16... Qf4 {[%clk
0:02:33.9]} 17. Nf1 {[%clk 0:01:04]} 17... f5 {[%clk 0:02:27.3]} 18. gxf5 {[%clk
0:00:50.3]} 18... gxf5 {[%clk 0:02:27.2]} 19. Qd2 {[%clk 0:00:19]} 19... fxe4
{[%clk 0:02:26.8]} 20. Qxf4 {[%clk 0:00:18.8]} 20... exf4 {[%clk 0:02:08.8]} 21.
O-O-O {[%clk 0:00:14.3]} 21... Rae8 {[%clk 0:02:01.1]} 22. fxe4 {[%clk
0:00:13.1]} 22... Rxe4 {[%clk 0:01:57]} 23. Bg4 {[%clk 0:00:13.1]} 23... Rb4
{[%clk 0:01:48.5]} 24. b3 {[%clk 0:00:11.7]} 24... a4 {[%clk 0:01:47.1]} 25. Nd2
{[%clk 0:00:09.4]} 25... axb3 {[%clk 0:01:45.5]} 26. Nxb3 {[%clk 0:00:09.6]}
26... Nxb3+ {[%clk 0:01:41.4]} 27. axb3 {[%clk 0:00:10.5]} 27... Rxb3 {[%clk
0:01:38.2]} 28. Be6+ {[%clk 0:00:10.9]} 28... Kh8 {[%clk 0:01:38.3]} 29. Rhg1
{[%clk 0:00:10.7]} 29... f3 {[%clk 0:01:35.2]} 30. Kc2 {[%clk 0:00:10.3]} 30...
Rc3+ {[%clk 0:01:32.3]} 31. Kd2 {[%clk 0:00:10.1]} 31... f2 {[%clk 0:01:28.6]}
32. Rgf1 {[%clk 0:00:10.1]} 32... Bd4 {[%clk 0:01:13.5]} 33. Ke2 {[%clk
0:00:10]} 33... Re3+ {[%clk 0:01:12.4]} 34. Kd2 {[%clk 0:00:08.9]} 34... Ra8
{[%clk 0:01:06.6]} 35. Rc1 {[%clk 0:00:07.4]} 35... Ra2+ {[%clk 0:01:05.2]} 36.
Kd1 {[%clk 0:00:03.4]} 36... Ree2 {[%clk 0:00:59.2]} 37. Rc8+ {[%clk 0:00:01.8]}
37... Kg7 {[%clk 0:00:59.3]} 38. Rg8+ {[%clk 0:00:02.4]} 38... Kf6 {[%clk
0:00:59.5]} 39. Rf8+ {[%clk 0:00:02.8]} 39... Ke7 {[%clk 0:00:58]} 40. Rf7+
{[%clk 0:00:02.9]} 40... Ke8 {[%clk 0:00:58.4]} 41. Rg7 {[%clk 0:00:02.6]} 41...
Re1+ {[%clk 0:00:41.8]} 42. Rxe1 {[%clk 0:00:02.2]} 42... Ra1+ {[%clk
0:00:42.2]} 43. Kd2 {[%clk 0:00:01.4]} 43... fxe1=Q+ {[%clk 0:00:42.4]} 0-1